bitfinex/quotes_BTCUSD_20220105
["timestamp","ask_amount","ask_price","bid_price","bid_amount"]
[1641364418363,0.00482956,46362.0,46361.0,0.06622693]
[1641364419460,0.00482956,46362.0,46361.0,0.00022693]
[1641364420261,0.00482956,46362.0,46361.0,0.04422693]
[1641364421464,0.00482956,46362.0,46361.0,0.00022693]
[1641364422309,0.00882956,46362.0,46361.0,0.04922693]
[1641364423513,0.00482956,46362.0,46361.0,0.00022693]
[1641364424309,0.00882956,46362.0,46361.0,0.04922693]
[1641364425511,0.00882956,46362.0,46361.0,0.00022693]
[1641364425709,0.00482956,46362.0,46361.0,0.00022693]
[1641364426360,0.00882956,46362.0,46361.0,0.04922693]
[1641364427560,0.00482956,46362.0,46361.0,0.00022693]
[1641364428361,0.00882956,46362.0,46361.0,0.04922693]
[1641364429462,0.00882956,46362.0,46361.0,0.00022693]
[1641364429711,0.00482956,46362.0,46361.0,0.00022693]
[1641364430312,0.00782956,46362.0,46361.0,0.05322693]
[1641364433117,0.36322156,46362.0,46361.0,0.05322693]
[1641364433564,0.46322156,46362.0,46361.0,0.05322693]
[1641364433967,0.51152156,46362.0,46361.0,0.05322693]
[1641364434164,0.88731045,46362.0,46361.0,0.05322693]
[1641364436365,0.88854594,46362.0,46361.0,0.05322693]
[1641364436769,0.51275705,46362.0,46361.0,0.05322693]
[1641364437410,0.41275705,46362.0,46361.0,0.05322693]
[1641364438911,0.56275705,46362.0,46361.0,0.05322693]
[1641364445816,0.71275705,46362.0,46361.0,0.05322693]
[1641364460212,0.61275705,46362.0,46361.0,0.05322693]
[1641364460418,0.56322156,46362.0,46361.0,0.05322693]
[1641364461114,0.51322156,46362.0,46361.0,0.05322693]
[1641364463762,0.15782956,46362.0,46361.0,0.05322693]
[1641364464361,0.51322156,46362.0,46361.0,0.05322693]
[1641364472062,0.53622156,46362.0,46361.0,0.05822693]
[1641364485871,0.18082956,46362.0,46361.0,0.05822693]
[1641364486069,0.53622156,46362.0,46361.0,0.05822693]
[1641364489914,0.95622156,46362.0,46361.0,0.05822693]
[1641364508122,0.60082956,46362.0,46361.0,0.05822693]
[1641364509066,0.95622156,46362.0,46361.0,0.05822693]
[1641364510668,0.60082956,46362.0,46361.0,0.05822693]
[1641364511468,0.95622156,46362.0,46361.0,0.05822693]
[1641364513322,0.18082956,46362.0,46361.0,0.34983536]
[1641364513721,0.18082956,46362.0,46361.0,0.57891693]
[1641364513929,0.18082956,46362.0,46361.0,0.93430893]
[1641364517779,0.18082956,46362.0,46361.0,1.87430893]
[1641364517980,0.18082956,46362.0,46361.0,0.93430893]
[1641364518383,0.06721272,46362.0,46361.0,2.07949288]
[1641364518582,0.06721272,46362.0,46361.0,2.1807722]
[1641364518981,0.06721272,46362.0,46361.0,4.29545406]
[1641364520227,0.06721272,46362.0,46361.0,4.89935406]
[1641364520437,0.00062833,46364.0,46363.0,5.03388618]
[1641364520631,0.0001,46368.0,46363.0,5.02037918]
[1641364520829,0.0004,46370.0,46367.0,1.298276]
[1641364521031,0.0004,46370.0,46369.0,0.355328]
[1641364521228,0.0004,46370.0,46369.0,1.50278327]
[1641364521628,0.0004,46370.0,46369.0,2.74678327]
[1641364522235,0.0004,46370.0,46369.0,2.84678327]
[1641364522634,0.0004,46370.0,46369.0,2.74678327]
[1641364527821,0.0004,46370.0,46369.0,2.80038327]
[1641364529221,0.0004,46370.0,46369.0,2.80060385]
[1641364529624,0.0004,46376.0,46373.0,0.355295]
[1641364529822,0.00305122,46382.0,46377.0,0.355258]
[1641364530126,5.122e-05,46382.0,46381.0,0.254225]
[1641364530321,5.122e-05,46382.0,46381.0,0.202525]
[1641364530522,5.122e-05,46382.0,46381.0,1.082525]
[1641364530722,5.122e-05,46382.0,46381.0,1.182525]
[1641364530975,5.122e-05,46382.0,46381.0,1.236423]
[1641364531174,5.122e-05,46382.0,46381.0,2.380423]
[1641364531379,5.122e-05,46382.0,46381.0,1.236423]
[1641364531978,5.122e-05,46382.0,46381.0,0.356423]
[1641364532178,5.122e-05,46382.0,46381.0,0.4630987]
[1641364533376,5.122e-05,46382.0,46381.0,0.256423]
[1641364533577,5.122e-05,46382.0,46381.0,0.053898]
[1641364534626,5.122e-05,46382.0,46381.0,0.40929]
[1641364536833,5.122e-05,46382.0,46381.0,0.60772285]
[1641364537033,5.122e-05,46382.0,46381.0,0.40929]
[1641364539674,5.122e-05,46382.0,46381.0,0.61202237]
[1641364539875,5.122e-05,46382.0,46381.0,0.6622328]
[1641364540480,5.122e-05,46382.0,46381.0,1.0422328]
[1641364540677,5.122e-05,46382.0,46381.0,0.6622328]
[1641364546271,5.122e-05,46382.0,46381.0,1.8062328]
[1641364548275,5.122e-05,46382.0,46381.0,1.9062328]
[1641364550023,5.122e-05,46382.0,46381.0,1.8062328]
[1641364550634,0.01238059,46387.0,46386.0,0.053598]
[1641364550635,0.01218597,46387.0,46386.0,0.053598]
[1641364550826,0.01218597,46387.0,46386.0,0.207633]
[1641364551126,0.01218597,46387.0,46386.0,1.728035]
[1641364551325,0.01218597,46387.0,46386.0,1.298035]
[1641364552125,0.01218597,46387.0,46386.0,1.50971523]
[1641364552327,0.01218597,46387.0,46386.0,2.31971523]
[1641364552328,0.00020538,46387.0,46386.0,2.31971523]
[1641364552525,0.00020538,46387.0,46386.0,4.44956586]
[1641364553474,0.00020538,46387.0,46386.0,3.63956586]
[1641364557423,5.38e-06,46388.0,46387.0,0.35534]
[1641364557622,5.38e-06,46388.0,46387.0,1.8527367]
[1641364558022,5.38e-06,46388.0,46387.0,1.9027367]
[1641364558224,5.38e-06,46388.0,46387.0,1.95661313]
[1641364558529,5.38e-06,46388.0,46387.0,1.96877313]
[1641364559324,0.00101598,46390.0,46387.0,1.96877313]
[1641364559526,0.0042,46389.0,46388.0,3.09335851]
[1641364559725,0.01213693,46392.0,46390.0,1.534021]
[1641364559925,0.01213693,46392.0,46391.0,1.63057729]
[1641364560127,0.01213693,46392.0,46391.0,2.87457729]
[1641364560329,0.0002,46392.0,46391.0,2.87457729]
[1641364561579,0.0002,46392.0,46391.0,2.87477927]
[1641364571588,0.01223682,46402.0,46396.0,0.15120931]
[1641364571779,0.01223682,46402.0,46397.0,2.726295]
[1641364572227,0.0003,46402.0,46397.0,2.82649234]
[1641364573128,0.0003,46402.0,46397.0,2.87649234]
[1641364579084,0.0003,46402.0,46397.0,3.93044717]
[1641364582932,0.00088618,46400.0,46397.0,3.93044717]
[1641364584180,0.00088618,46400.0,46398.0,1.735244]
[1641364584379,0.00088618,46400.0,46399.0,2.94852034]
[1641364584582,0.00088618,46400.0,46399.0,3.04852034]
[1641364584781,0.00088618,46400.0,46399.0,4.10247517]
[1641364585981,0.00088618,46400.0,46399.0,3.87024283]
[1641364588125,0.0003,46400.0,46399.0,3.87024283]
[1641364588727,0.0003,46400.0,46399.0,2.806288]
[1641364590033,0.0002,46416.0,46415.0,2.02896229]
[1641364590245,0.0001,46420.0,46415.0,2.02896229]
[1641364590246,0.0001,46420.0,46415.0,3.75601548]
[1641364590433,0.0003,46425.0,46420.0,1.144]
[1641364590434,0.0001,46421.0,46420.0,1.144]
[1641364590634,0.0019,46429.0,46421.0,1.143915]
[1641364590887,0.00058912,46423.0,46422.0,0.0483]
[1641364591083,0.00058912,46423.0,46422.0,0.403349]
[1641364591287,0.0001,46431.0,46422.0,1.601192]
[1641364591483,0.0136659,46434.0,46429.0,1.144]
[1641364591484,0.01255502,46434.0,46429.0,1.144]
[1641364591683,0.01255502,46434.0,46431.0,0.053841]
[1641364591884,0.01255502,46434.0,46432.0,0.354962]
[1641364592290,0.01255502,46434.0,46432.0,0.408802]
[1641364592886,0.01255502,46434.0,46432.0,0.05384]
[1641364593086,0.01255502,46434.0,46430.0,0.0483]
[1641364593286,0.01255502,46434.0,46433.0,0.00016696]
[1641364596330,0.01255502,46434.0,46433.0,0.00916696]
[1641364596731,0.01255502,46434.0,46433.0,0.36445096]
[1641364596930,0.01255502,46434.0,46433.0,0.36451096]
[1641364597732,0.01255502,46434.0,46433.0,0.35551096]
[1641364598380,0.01255502,46434.0,46433.0,0.36551096]
[1641364599582,0.01255502,46434.0,46433.0,0.35551096]
[1641364600382,0.01255502,46434.0,46433.0,0.36451096]
[1641364601784,0.01255502,46434.0,46433.0,0.35551096]
[1641364602433,0.01255502,46434.0,46433.0,0.41801096]
[1641364603836,0.01255502,46434.0,46433.0,0.40901096]
[1641364604436,0.01255502,46434.0,46433.0,0.06372696]
[1641364605236,0.01255502,46434.0,46433.0,0.41901096]
[1641364605637,0.01255502,46434.0,46433.0,0.40901096]
[1641364606081,0.01255502,46434.0,46433.0,0.35551096]
[1641364606582,0.01255502,46434.0,46433.0,0.36551096]
[1641364606982,0.01255502,46434.0,46433.0,0.01022696]
[1641364607583,0.01255502,46434.0,46433.0,0.00022696]
[1641364607784,0.01255502,46434.0,46433.0,0.35551096]
[1641364608387,0.01255502,46434.0,46433.0,0.36551096]
[1641364609646,0.01255502,46434.0,46433.0,0.35551096]
[1641364610446,0.01255502,46434.0,46433.0,0.36551096]
[1641364611248,0.01255502,46434.0,46433.0,0.01022696]
[1641364611545,0.01255502,46434.0,46433.0,0.36551096]
[1641364611746,0.01255502,46434.0,46433.0,0.35551096]
[1641364612548,0.01255502,46434.0,46433.0,0.36451096]
[1641364613781,0.01255502,46434.0,46433.0,0.35551096]
[1641364614382,0.01255502,46434.0,46433.0,0.01022696]
[1641364614585,1.12118352,46434.0,46433.0,0.01022696]
[1641364614784,0.70772262,46434.0,46433.0,0.01022696]
[1641364614983,0.75772262,46434.0,46433.0,0.01022696]
[1641364615383,0.51909412,46434.0,46433.0,2.696e-05]
[1641364615886,0.51909412,46434.0,46422.0,0.01180656]
[1641364615887,0.05385743,46426.0,46422.0,0.01180656]
[1641364616086,0.10771486,46427.0,46422.0,0.01180656]
[1641364616484,0.10771486,46427.0,46422.0,0.07980656]
[1641364617338,0.10771486,46427.0,46422.0,0.13366356]
[1641364617739,0.05385673,46425.0,46422.0,0.06566356]
[1641364617938,0.05385673,46425.0,46423.0,0.355284]
[1641364618543,0.05385673,46425.0,46423.0,0.423284]
[1641364618939,0.05385098,46426.0,46423.0,0.423284]
[1641364619141,0.39339376,46431.0,46424.0,0.053852]
[1641364620441,0.39339376,46431.0,46424.0,0.071852]
[1641364621097,0.05385006,46428.0,46424.0,0.071852]
[1641364621291,0.39339376,46431.0,46424.0,0.071852]
[1641364621692,0.39339376,46431.0,46424.0,0.053852]
[1641364622390,0.39339376,46431.0,46424.0,0.072852]
[1641364622991,0.10770783,46429.0,46424.0,0.072852]
[1641364623793,0.10770783,46429.0,46424.0,0.053852]
[1641364624393,0.10770783,46429.0,46424.0,0.081852]
[1641364624642,0.05385438,46426.0,46424.0,0.081852]
[1641364625437,0.05385438,46426.0,46425.0,0.00015727]
[1641364626439,0.05385438,46426.0,46425.0,0.04515727]
[1641364627240,0.00057728,46430.0,46425.0,0.26652879]
[1641364627541,0.05442354,46430.0,46428.0,0.053846]
[1641364627739,0.05442354,46430.0,46429.0,1.513615]
[1641364627939,0.05384626,46430.0,46429.0,1.513615]
[1641364628139,0.01255502,46434.0,46429.0,1.513615]
[1641364628586,0.01255502,46434.0,46429.0,0.159615]
[1641364628888,0.05384474,46431.0,46429.0,0.159615]
[1641364629686,0.05384474,46431.0,46429.0,0.143615]
[1641364630285,0.05384474,46431.0,46429.0,0.19746]
[1641364630486,0.05384474,46431.0,46429.0,0.21146]
[1641364631786,0.05384474,46431.0,46429.0,0.19746]
[1641364632436,0.05384474,46431.0,46429.0,0.21146]
[1641364634237,0.05384474,46431.0,46429.0,1.35546]
[1641364634437,0.05384474,46431.0,46429.0,1.36946]
[1641364635037,0.05384474,46431.0,46429.0,1.35546]
[1641364635637,0.05384474,46431.0,46429.0,1.34146]
[1641364635888,0.05384474,46431.0,46430.0,0.00015431]
[1641364636089,0.05384474,46431.0,46430.0,0.35540531]
[1641364636389,0.05384474,46431.0,46430.0,0.42984531]
[1641364636593,0.05384474,46431.0,46430.0,0.44384531]
[1641364637892,0.05384474,46431.0,46430.0,0.42984531]
[1641364638491,0.05384474,46431.0,46430.0,0.44384531]
[1641364638693,0.05384474,46431.0,46430.0,0.36940531]
[1641364639732,0.05384474,46431.0,46430.0,0.35540531]
[1641364640533,0.05384474,46431.0,46430.0,0.37040531]
[1641364641837,0.05384474,46431.0,46430.0,0.35540531]
[1641364642641,0.05384474,46431.0,46430.0,0.36940531]
[1641364643586,0.05384215,46433.0,46430.0,0.36940531]
[1641364643786,0.05384215,46433.0,46431.0,0.053843]
[1641364643987,0.05384215,46433.0,46432.0,0.143604]
[1641364644587,0.05384215,46433.0,46432.0,0.156604]
[1641364645885,0.05384215,46433.0,46432.0,0.143604]
[1641364646290,0.31851367,46433.0,46428.0,0.82975565]
[1641364646488,0.20609245,46433.0,46432.0,0.0161522]
[1641364646693,0.61137645,46433.0,46432.0,0.0161522]
[1641364647132,0.61195378,46433.0,46432.0,0.0161522]
[1641364647333,1.58565146,46433.0,46432.0,0.0161522]
[1641364647533,1.63950846,46433.0,46432.0,0.0161522]
[1641364647732,1.63950846,46433.0,46432.0,0.0001522]
[1641364647934,1.63950846,46433.0,46427.0,0.01180582]
[1641364648135,0.00121786,46428.0,46427.0,0.01180582]
[1641364648336,0.35650186,46428.0,46427.0,0.01180582]
[1641364648537,0.74628881,46428.0,46427.0,0.01180582]
[1641364648733,0.79628881,46428.0,46427.0,0.01180582]
[1641364648936,0.84628881,46428.0,46427.0,0.01180582]
[1641364649736,0.74628881,46428.0,46427.0,0.01180582]
[1641364650137,0.64628881,46428.0,46427.0,0.01180582]
[1641364650344,0.64628881,46428.0,46415.0,1.28871794]
[1641364650345,0.05386484,46419.0,46415.0,1.28871794]
[1641364650539,0.05386484,46419.0,46416.0,0.355284]
[1641364650740,0.10772968,46420.0,46416.0,0.355284]
[1641364651198,0.10772968,46420.0,46417.0,0.143742]
[1641364651597,0.0538641,46419.0,46417.0,0.143742]
[1641364652596,0.0538641,46419.0,46417.0,0.159742]
[1641364653198,0.0538641,46419.0,46417.0,0.213602]
[1641364656633,0.0538641,46419.0,46417.0,0.212602]
[1641364657037,0.0538641,46419.0,46418.0,0.0001506]
[1641364657235,0.0538641,46419.0,46418.0,0.3554196]
[1641364658481,0.0538641,46419.0,46418.0,0.3694196]
[1641364659883,0.0538641,46419.0,46418.0,0.3554196]
[1641364660585,0.0538641,46419.0,46418.0,0.3684196]
[1641364661987,0.0538641,46419.0,46418.0,0.3554196]
[1641364662632,0.0538641,46419.0,46418.0,0.3694196]
[1641364663333,0.0538641,46419.0,46418.0,0.0141506]
[1641364663334,0.25545935,46419.0,46418.0,0.0141506]
[1641364663734,0.0538641,46419.0,46418.0,0.0001506]
[1641364664536,0.0538641,46419.0,46418.0,0.0201506]
[1641364665539,0.0538641,46419.0,46418.0,0.3754346]
[1641364665984,0.0538641,46419.0,46418.0,0.3554346]
[1641364666483,0.0538641,46419.0,46418.0,0.3714346]
[1641364667883,0.0538641,46419.0,46418.0,0.3554346]
[1641364668584,0.0538641,46419.0,46418.0,0.3664346]
[1641364670634,0.0538641,46419.0,46418.0,0.3784346]
[1641364672637,0.0538641,46419.0,46418.0,0.3894346]
[1641364673890,0.0538641,46419.0,46418.0,0.3554346]
[1641364674686,0.0538641,46419.0,46418.0,0.3714346]
[1641364675889,0.0538641,46419.0,46418.0,0.3554346]
[1641364676689,0.0538641,46419.0,46418.0,0.3684346]
[1641364677737,0.0538641,46419.0,46418.0,0.3554346]
[1641364678534,0.0538641,46419.0,46418.0,0.3674346]
[1641364680037,0.0538641,46419.0,46418.0,0.3554346]
[1641364680639,0.0538641,46419.0,46418.0,0.3694346]
[1641364681882,0.0538641,46419.0,46418.0,0.3554346]
[1641364682582,0.0538641,46419.0,46418.0,0.3674346]
[1641364684638,0.0538641,46419.0,46418.0,0.3694346]
[1641364685839,0.0538641,46419.0,46418.0,0.3554346]
[1641364686541,0.0538641,46419.0,46418.0,0.3704346]
[1641364687947,0.0538641,46419.0,46418.0,0.3554346]
[1641364688585,0.0538641,46419.0,46418.0,0.3664346]
[1641364689988,0.0538641,46419.0,46418.0,0.3554346]
[1641364690591,0.0538641,46419.0,46418.0,0.3664346]
[1641364691888,0.0538641,46419.0,46418.0,0.3554346]
[1641364692739,0.0538641,46419.0,46418.0,0.3664346]
[1641364693942,0.0538641,46419.0,46418.0,0.3554346]
[1641364694541,0.0538641,46419.0,46418.0,0.3684346]
[1641364695988,0.0538641,46419.0,46418.0,0.55980826]
[1641364696187,0.0538641,46419.0,46418.0,0.3554346]
[1641364696586,0.0538641,46419.0,46418.0,0.3684346]
[1641364697987,0.0538641,46419.0,46418.0,0.3554346]
[1641364698591,0.0538641,46419.0,46418.0,0.3694346]
[1641364699835,0.0538641,46419.0,46418.0,0.3554346]
[1641364700639,0.0538641,46419.0,46418.0,0.3694346]
[1641364701840,0.0538641,46419.0,46418.0,0.3554346]
[1641364702642,0.0538641,46419.0,46418.0,0.3694346]
[1641364704092,0.0538641,46419.0,46418.0,0.3554346]
[1641364704693,0.0538641,46419.0,46418.0,0.3704346]
[1641364705096,0.0488641,46419.0,46418.0,0.3704346]
[1641364705897,0.0488641,46419.0,46418.0,0.3554346]
[1641364706698,0.0488641,46419.0,46418.0,0.3694346]
[1641364707938,0.0488641,46419.0,46418.0,0.3554346]
[1641364708139,0.0488641,46419.0,46418.0,0.3454346]
[1641364708740,0.0488641,46419.0,46418.0,0.3594346]
[1641364709844,0.0488641,46419.0,46418.0,0.3454346]
[1641364710644,0.0488641,46419.0,46418.0,0.3604346]
[1641364711999,0.0488641,46419.0,46418.0,0.3454346]
[1641364712400,0.0238641,46419.0,46418.0,0.3454346]
[1641364712801,0.0238641,46419.0,46418.0,0.3604346]
[1641364714002,0.0238641,46419.0,46418.0,0.3454346]
[1641364714637,0.0238641,46419.0,46418.0,0.3654346]
[1641364716040,0.0238641,46419.0,46418.0,0.3454346]
[1641364716639,0.0238641,46419.0,46418.0,0.3794346]
[1641364718044,0.0238641,46419.0,46418.0,0.3454346]
[1641364718690,0.0238641,46419.0,46418.0,0.3814346]
[1641364719891,0.02374057,46419.0,46418.0,0.3454346]
[1641364720691,0.02374057,46419.0,46418.0,0.3884346]
[1641364721999,0.02374057,46419.0,46418.0,0.3454346]
[1641364722640,0.02374057,46419.0,46418.0,0.3894346]
[1641364723941,0.02374057,46419.0,46418.0,0.3454346]
[1641364724645,0.02374057,46419.0,46418.0,0.3754346]
[1641364725994,0.02374057,46419.0,46418.0,0.53988795]
[1641364726395,0.0004,46435.0,46418.0,1.88603795]
[1641364726594,0.0004,46435.0,46420.0,1.144]
[1641364726794,0.0004,46435.0,46422.0,1.144]
[1641364727094,0.00057725,46428.0,46424.0,1.144]
[1641364727298,0.00057725,46428.0,46425.0,1.53611034]
[1641364727594,0.10769959,46427.0,46426.0,0.0483]
[1641364727794,0.10769959,46427.0,46426.0,0.393677]
[1641364728793,0.10769959,46427.0,46426.0,0.408677]
[1641364728996,0.10769959,46427.0,46426.0,0.40880674]
[1641364729842,0.10769959,46427.0,46426.0,0.06342974]
[1641364730236,0.15769959,46427.0,46426.0,0.06342974]
[1641364730841,0.15769959,46427.0,46426.0,0.13442974]
[1641364731637,0.15769959,46427.0,46426.0,0.08612974]
[1641364731839,0.51291959,46427.0,46426.0,0.08612974]
[1641364732038,0.51291959,46427.0,46426.0,0.00012974]
[1641364732842,0.83297568,46427.0,46426.0,0.05112974]
[1641364733044,0.05,46426.0,46421.0,0.01184555]
[1641364733241,0.04523646,46422.0,46421.0,0.01184555]
[1641364733499,0.10892646,46422.0,46421.0,0.01184555]
[1641364733696,0.7021118,46422.0,46421.0,0.01184555]
[1641364734397,0.28644874,46416.0,46415.0,0.45896229]
[1641364735598,0.49719498,46416.0,46415.0,0.45896229]
[1641364736695,0.50419498,46416.0,46415.0,0.50596229]
[1641364738138,0.49719498,46416.0,46415.0,0.45896229]
[1641364738738,0.50419498,46416.0,46415.0,0.50596229]
[1641364739742,0.007,46416.0,46415.0,0.50608951]
[1641364739941,0.21005325,46416.0,46415.0,0.50608951]
[1641364740149,0.20305325,46416.0,46415.0,0.45908951]
[1641364740887,0.21105325,46416.0,46415.0,0.47208951]
[1641364742091,0.20305325,46416.0,46415.0,0.45908951]
[1641364742795,0.21005325,46416.0,46415.0,0.47008951]
[1641364744093,0.20305325,46416.0,46415.0,0.45908951]
[1641364744743,0.21005325,46416.0,46415.0,0.46808951]
[1641364746144,0.20305325,46416.0,46415.0,0.45908951]
[1641364746745,0.21505325,46416.0,46415.0,0.45908951]
[1641364747147,0.21628096,46416.0,46415.0,0.02806162]
[1641364747347,0.87756196,46416.0,46415.0,0.02806162]
[1641364747547,0.35522,46412.0,46407.0,0.39864711]
[1641364747753,0.35522,46412.0,46406.0,0.39864711]
[1641364747754,1.09035945,46408.0,46406.0,0.39864711]
[1641364747952,1.09035945,46408.0,46403.0,2.81e-06]
[1641364747953,0.35522,46404.0,46403.0,2.81e-06]
[1641364748247,0.28249764,46403.0,46399.0,0.94829217]
[1641364748495,0.25179468,46393.0,46392.0,1.06682869]
[1641364748694,0.25179468,46393.0,46375.0,0.13146253]
[1641364748695,0.28349468,46393.0,46389.0,1.09999743]
[1641364748893,0.0483,46392.0,46389.0,1.09999743]
[1641364749294,0.0483,46392.0,46381.0,0.004]
[1641364749295,0.33237576,46384.0,46381.0,0.004]
[1641364749695,0.38237576,46384.0,46381.0,0.004]
[1641364749893,0.43628776,46384.0,46376.0,1.04899743]
[1641364750093,0.05391058,46381.0,46373.0,1.36499927]
[1641364750293,0.05391058,46381.0,46374.0,0.35522]
[1641364750900,0.00057903,46380.0,46374.0,0.35522]
[1641364751095,0.00057903,46380.0,46375.0,0.21665162]
[1641364751296,0.00057903,46380.0,46376.0,0.134464]
[1641364751497,0.00057903,46380.0,46379.0,1.725181]
[1641364751696,0.00057903,46380.0,46379.0,2.869181]
[1641364754841,0.00057903,46380.0,46379.0,4.07620515]
[1641364756903,0.00057903,46380.0,46379.0,2.93220515]
[1641364757802,0.00057903,46380.0,46379.0,1.725181]
[1641364758002,0.00057903,46380.0,46379.0,2.869181]
[1641364758206,0.32024538,46391.0,46384.0,0.053898]
[1641364758802,0.32424538,46391.0,46389.0,0.84098705]
[1641364759102,0.00057905,46390.0,46389.0,0.84098705]
[1641364759937,0.00057905,46390.0,46389.0,1.19620705]
[1641364760842,0.00057905,46390.0,46389.0,0.84098705]
[1641364761038,0.00057905,46390.0,46388.0,0.84098705]
[1641364761239,0.00057905,46390.0,46389.0,0.00013804]
[1641364762140,0.00057905,46390.0,46389.0,0.70013804]
[1641364762338,0.00057905,46390.0,46389.0,1.05535804]
[1641364762739,0.01957905,46390.0,46389.0,1.05535804]
[1641364762940,0.01957905,46390.0,46389.0,0.35535804]
[1641364763140,0.019,46390.0,46389.0,0.00013804]
[1641364764089,0.33688701,46394.0,46389.0,0.00013804]
[1641364764294,0.05389929,46391.0,46389.0,0.00013804]
[1641364764489,0.33688701,46394.0,46389.0,0.00013804]
[1641364764891,0.02,46391.0,46389.0,0.00013804]
[1641364765492,0.07389951,46391.0,46389.0,0.00013804]
[1641364765996,0.17389951,46391.0,46389.0,0.00013804]
[1641364766191,0.15389951,46391.0,46389.0,0.00013804]
[1641364766791,0.16689951,46391.0,46389.0,0.00013804]
[1641364768046,0.15389951,46391.0,46389.0,0.00013804]
[1641364768947,0.16689951,46391.0,46389.0,0.00013804]
[1641364769347,0.16689951,46391.0,46390.0,0.84098705]
[1641364770147,0.10389951,46391.0,46389.0,0.00013804]
[1641364770347,0.05389951,46391.0,46389.0,0.00013804]
[1641364770752,0.05389951,46391.0,46390.0,0.84161754]
[1641364770997,0.06489951,46391.0,46390.0,1.19683754]
[1641364771202,0.011,46391.0,46390.0,1.19683754]
[1641364771595,0.011,46391.0,46390.0,0.35522]
[1641364771798,0.011,46391.0,46390.0,1.25513655]
[1641364772198,0.00057665,46392.0,46390.0,1.25513655]
[1641364772395,0.00057665,46392.0,46390.0,0.89991655]
[1641364772797,0.01457665,46392.0,46391.0,1.11522]
[1641364772998,0.01457665,46392.0,46391.0,2.85680942]
[1641364773197,0.014,46392.0,46391.0,2.85680942]
[1641364773598,0.014,46392.0,46391.0,2.01499978]
[1641364773802,0.014,46392.0,46391.0,1.25499978]
[1641364774197,0.05389457,46394.0,46391.0,1.25499978]
[1641364774741,0.05389457,46394.0,46393.0,0.84206642]
[1641364775341,0.05389457,46394.0,46393.0,1.7418462]
[1641364776349,0.05389457,46394.0,46391.0,0.84206642]
[1641364776543,0.10779357,46394.0,46391.0,0.84206642]
[1641364776960,0.10779357,46394.0,46391.0,0.85506642]
[1641364777145,0.05389815,46393.0,46391.0,0.85506642]
[1641364778046,0.05389815,46393.0,46391.0,0.84206642]
[1641364778891,0.05389815,46393.0,46391.0,0.85406642]
[1641364779586,0.04889815,46393.0,46391.0,0.85406642]
[1641364780188,0.04889815,46393.0,46390.0,0.84220319]
[1641364780391,0.10279815,46393.0,46390.0,0.84220319]
[1641364780789,0.10279815,46393.0,46390.0,0.85320319]
[1641364780989,0.10779847,46392.0,46390.0,0.85320319]
[1641364781395,0.15779847,46392.0,46390.0,0.01113677]
[1641364782242,0.21169947,46392.0,46390.0,0.00013677]
[1641364782846,0.21169947,46392.0,46390.0,0.01413677]
[1641364783346,0.25273586,46391.0,46390.0,0.01413677]
[1641364784146,0.25273586,46391.0,46390.0,0.00013677]
[1641364784946,0.30873586,46391.0,46390.0,0.01913677]
[1641364786190,0.30273586,46391.0,46390.0,0.00013677]
[1641364786990,0.31073586,46391.0,46390.0,0.01213677]
[1641364787791,0.26073586,46391.0,46390.0,0.01213677]
[1641364788194,0.25400657,46391.0,46390.0,0.00013677]
[1641364788593,0.60922657,46391.0,46390.0,0.00013677]
[1641364788893,0.71922657,46391.0,46390.0,0.00013677]
[1641364789741,0.76922657,46391.0,46390.0,0.00013677]
[1641364790136,0.75922657,46391.0,46390.0,0.00013677]
[1641364791038,0.76922657,46391.0,46390.0,0.00013677]
[1641364792241,0.75922657,46391.0,46390.0,0.00013677]
[1641364792840,0.77022657,46391.0,46390.0,0.00013677]
[1641364794099,0.75922657,46391.0,46390.0,0.00013677]
[1641364794902,0.77022657,46391.0,46390.0,0.00013677]
[1641364796202,0.75922657,46391.0,46390.0,0.00013677]
[1641364797002,0.77022657,46391.0,46390.0,0.00013677]
[1641364798243,0.75922657,46391.0,46390.0,0.00013677]
[1641364798943,0.77022657,46391.0,46390.0,0.00013677]
[1641364800250,0.60922657,46391.0,46390.0,0.00013677]
[1641364800898,0.62622657,46391.0,46390.0,0.00013677]
[1641364801798,0.62495586,46391.0,46390.0,0.00013677]
[1641364802001,0.67495586,46391.0,46390.0,0.00013677]
[1641364802300,0.65795586,46391.0,46390.0,0.00013677]
[1641364802898,0.67795586,46391.0,46390.0,0.00013677]
[1641364803499,0.42522,46391.0,46390.0,0.00013677]
[1641364803999,0.07,46391.0,46390.0,0.00013677]
[1641364804199,0.04889815,46393.0,46390.0,0.00013677]
[1641364804650,0.04889815,46393.0,46390.0,0.05403077]
[1641364804849,0.04889815,46393.0,46390.0,0.00013677]
[1641364805047,0.07089815,46393.0,46390.0,0.00013677]
[1641364806248,0.04889815,46393.0,46390.0,0.00013677]
[1641364806646,0.35522,46392.0,46390.0,0.00013677]
[1641364807047,0.04889815,46393.0,46390.0,0.00013677]
[1641364807048,0.12579715,46393.0,46390.0,0.00013677]
[1641364808249,0.10279715,46393.0,46390.0,0.00013677]
[1641364808698,0.04889815,46393.0,46390.0,0.00013677]
[1641364808895,0.07089815,46393.0,46390.0,0.00013677]
[1641364810295,0.04889815,46393.0,46390.0,0.00013677]
[1641364810697,0.10279715,46393.0,46390.0,0.00013677]
[1641364810898,0.35522,46392.0,46390.0,0.00013677]
[1641364811099,0.40522,46392.0,46390.0,0.00013677]
[1641364811699,1.6880116,46391.0,46390.0,0.00013677]
[1641364811897,2.0432316,46391.0,46390.0,0.00013677]
[1641364812554,0.35522,46391.0,46390.0,0.00013677]
[1641364812947,0.37822,46391.0,46390.0,0.00013677]
[1641364814949,0.37122,46391.0,46390.0,0.00013677]
[1641364816402,0.42632,46391.0,46390.0,0.00013677]
[1641364816803,0.41032,46391.0,46390.0,0.00013677]
[1641364817003,0.42632,46391.0,46390.0,0.00013677]
[1641364818204,0.0551,46391.0,46390.0,0.00013677]
[1641364819006,0.0781,46391.0,46390.0,0.00013677]
[1641364820245,0.0551,46391.0,46390.0,0.00013677]
[1641364821049,0.0861,46391.0,46390.0,0.00013677]
[1641364822346,0.0551,46391.0,46390.0,0.00013677]
[1641364822950,0.0861,46391.0,46390.0,0.00013677]
[1641364824797,0.0551,46391.0,46390.0,0.00013677]
[1641364824996,0.0971,46391.0,46390.0,0.00013677]
[1641364826396,0.0551,46391.0,46390.0,0.00013677]
[1641364826998,0.0731,46391.0,46390.0,0.00013677]
[1641364828253,0.0551,46391.0,46390.0,0.00013677]
[1641364829049,0.0721,46391.0,46390.0,0.00013677]
[1641364830352,0.0551,46391.0,46390.0,0.00013677]
[1641364831002,0.0551,46386.0,46381.0,0.84206642]
[1641364831202,0.0551,46386.0,46381.0,0.89597142]
[1641364831401,0.0551,46383.0,46381.0,0.89597142]
[1641364831602,0.0551,46383.0,46382.0,1.32522]
[1641364832902,0.0551,46383.0,46382.0,0.35522]
[1641364833101,0.10900338,46383.0,46382.0,0.78536269]
[1641364833502,0.15900338,46383.0,46382.0,0.78536269]